[Event "Late-Titled-Tuesday-Blitz-May-07-2024"]
[Site "Chess.com"]
[Date "2024.05.07"]
[Round "5"]
[White "penguingm1"]
[Black "prime-morty"]
[Result "1-0"]
[WhiteElo "2900"]
[BlackElo "2709"]
[TimeControl "180+1"]
[EndTime "14:56:39 PDT"]
[Termination "penguingm1 won by checkmate"]

1. d4 {[%clk 0:03:00.9]} 1... d5 {[%clk 0:02:58.5]} 2. Bf4 {[%clk 0:03:01.1]}
2... c5 {[%clk 0:02:58.2]} 3. e3 {[%clk 0:03:01.2]} 3... cxd4 {[%clk 0:02:58.6]}
4. exd4 {[%clk 0:03:02.1]} 4... Nc6 {[%clk 0:02:59.1]} 5. Nf3 {[%clk 0:03:02.1]}
5... Bg4 {[%clk 0:02:58.7]} 6. Nbd2 {[%clk 0:03:02.3]} 6... e6 {[%clk
0:02:58.7]} 7. c3 {[%clk 0:03:01.9]} 7... Bd6 {[%clk 0:02:58.8]} 8. Bxd6 {[%clk
0:03:01.2]} 8... Qxd6 {[%clk 0:02:58.6]} 9. Qb3 {[%clk 0:03:02]} 9... Nge7
{[%clk 0:02:54]} 10. Bd3 {[%clk 0:02:34.6]} 10... O-O {[%clk 0:02:53.8]} 11. O-O
{[%clk 0:02:30]} 11... f6 {[%clk 0:02:44.8]} 12. Rfe1 {[%clk 0:02:05.4]} 12...
Kh8 {[%clk 0:02:31.8]} 13. Qc2 {[%clk 0:01:46.4]} 13... e5 {[%clk 0:02:23.9]}
14. Bxh7 {[%clk 0:01:07.8]} 14... e4 {[%clk 0:02:19.9]} 15. Nxe4 {[%clk
0:00:58.2]} 15... dxe4 {[%clk 0:02:18.6]} 16. Bxe4 {[%clk 0:00:59.1]} 16... f5
{[%clk 0:02:06.8]} 17. Bxc6 {[%clk 0:00:58.9]} 17... Nxc6 {[%clk 0:02:06.7]} 18.
Ng5 {[%clk 0:00:59.2]} 18... Qg6 {[%clk 0:01:53.4]} 19. f4 {[%clk 0:00:52]}
19... Rae8 {[%clk 0:01:53]} 20. d5 {[%clk 0:00:45.4]} 20... Nd8 {[%clk
0:01:43.3]} 21. h3 {[%clk 0:00:34.1]} 21... Bh5 {[%clk 0:01:42.7]} 22. Kh1
{[%clk 0:00:29.3]} 22... Qb6 {[%clk 0:01:38.4]} 23. Qd2 {[%clk 0:00:26.4]} 23...
Rxe1+ {[%clk 0:01:31.4]} 24. Rxe1 {[%clk 0:00:27.3]} 24... Re8 {[%clk
0:01:31.6]} 25. Rxe8+ {[%clk 0:00:25.9]} 25... Bxe8 {[%clk 0:01:32.5]} 26. Qe2
{[%clk 0:00:26.5]} 26... Qb5 {[%clk 0:01:28.1]} 27. Qe7 {[%clk 0:00:22.8]} 27...
Qf1+ {[%clk 0:01:27.6]} 28. Kh2 {[%clk 0:00:16.3]} 28... Qxf4+ {[%clk
0:01:27.9]} 29. Kg1 {[%clk 0:00:16.9]} 29... Qc1+ {[%clk 0:01:13.2]} 30. Kh2
{[%clk 0:00:13.4]} 30... Qf4+ {[%clk 0:01:13]} 31. Kg1 {[%clk 0:00:11.9]} 31...
Qc1+ {[%clk 0:00:56.4]} 32. Kf2 {[%clk 0:00:12]} 32... Qxb2+ {[%clk 0:00:52.2]}
33. Kg3 {[%clk 0:00:12.5]} 33... Qxc3+ {[%clk 0:00:52.3]} 34. Nf3 {[%clk
0:00:13.1]} 34... Qf6 {[%clk 0:00:47.9]} 35. Qxe8+ {[%clk 0:00:13.4]} 35... Kh7
{[%clk 0:00:48.5]} 36. h4 {[%clk 0:00:13.5]} 36... Nf7 {[%clk 0:00:47.7]} 37.
Qe6 {[%clk 0:00:08.5]} 37... Qxe6 {[%clk 0:00:45.6]} 38. dxe6 {[%clk 0:00:09.4]}
38... Nd6 {[%clk 0:00:44.9]} 39. Kf4 {[%clk 0:00:09.5]} 39... Kg6 {[%clk
0:00:43.9]} 40. Ke5 {[%clk 0:00:10.1]} 40... Nc4+ {[%clk 0:00:41.4]} 41. Kd5
{[%clk 0:00:10.6]} 41... Nb6+ {[%clk 0:00:36.8]} 42. Kd6 {[%clk 0:00:11.1]}
42... Kf6 {[%clk 0:00:36.7]} 43. Ng5 {[%clk 0:00:06.7]} 43... Nc8+ {[%clk
0:00:33.7]} 44. Kd7 {[%clk 0:00:06]} 44... Nb6+ {[%clk 0:00:31]} 45. Kc7 {[%clk
0:00:06]} 45... Nd5+ {[%clk 0:00:23.8]} 46. Kd6 {[%clk 0:00:05.2]} 46... Nb6
{[%clk 0:00:22.4]} 47. g3 {[%clk 0:00:05.7]} 47... a5 {[%clk 0:00:21.9]} 48. Kc7
{[%clk 0:00:03.8]} 48... Nd5+ {[%clk 0:00:21]} 49. Kxb7 {[%clk 0:00:04.4]} 49...
f4 {[%clk 0:00:20.9]} 50. gxf4 {[%clk 0:00:02.3]} 50... Nxf4 {[%clk 0:00:21.3]}
51. Kb6 {[%clk 0:00:03]} 51... Ng2 {[%clk 0:00:18.3]} 52. Kxa5 {[%clk
0:00:01.3]} 52... Nxh4 {[%clk 0:00:18.7]} 53. Kb6 {[%clk 0:00:02.1]} 53... Nf5
{[%clk 0:00:17.3]} 54. a4 {[%clk 0:00:02.8]} 54... Kxg5 {[%clk 0:00:14.7]} 55.
a5 {[%clk 0:00:03.3]} 55... Nd6 {[%clk 0:00:13.9]} 56. Kc6 {[%clk 0:00:02.8]}
56... Nc8 {[%clk 0:00:12.7]} 57. Kd7 {[%clk 0:00:03.2]} 57... Kf6 {[%clk
0:00:09.9]} 58. Kxc8 {[%clk 0:00:03.9]} 58... Kxe6 {[%clk 0:00:09.4]} 59. a6
{[%clk 0:00:04.5]} 59... g5 {[%clk 0:00:10.3]} 60. a7 {[%clk 0:00:05.2]} 60...
Kf5 {[%clk 0:00:10.9]} 61. a8=Q {[%clk 0:00:05.9]} 61... Kf4 {[%clk 0:00:11.8]}
62. Qg2 {[%clk 0:00:06.6]} 62... g4 {[%clk 0:00:12.7]} 63. Kd7 {[%clk
0:00:07.3]} 63... g3 {[%clk 0:00:13]} 64. Ke6 {[%clk 0:00:08]} 64... Kg4 {[%clk
0:00:13.9]} 65. Ke5 {[%clk 0:00:08.5]} 65... Kg5 {[%clk 0:00:14.2]} 66. Qxg3+
{[%clk 0:00:08.8]} 66... Kh5 {[%clk 0:00:15.1]} 67. Kf6 {[%clk 0:00:09.1]} 67...
Kh6 {[%clk 0:00:15.8]} 68. Qh4# {[%clk 0:00:09.9]} 1-0

[Event "Late-Titled-Tuesday-Blitz-May-07-2024"]
[Site "Chess.com"]
[Date "2024.05.07"]
[Round "5"]
[White "lluiss"]
[Black "Walter_White_Poland"]
[Result "1-0"]
[WhiteElo "2235"]
[BlackElo "2413"]
[TimeControl "180+1"]
[EndTime "14:56:41 PDT"]
[Termination "lluiss won on time"]

1. Nf3 {[%clk 0:03:00.9]} 1... d5 {[%clk 0:02:41.8]} 2. d4 {[%clk 0:02:59.7]}
2... Nf6 {[%clk 0:02:38.6]} 3. c4 {[%clk 0:03:00]} 3... e6 {[%clk 0:02:36.7]} 4.
cxd5 {[%clk 0:02:59.8]} 4... exd5 {[%clk 0:02:33.5]} 5. Nc3 {[%clk 0:03:00.1]}
5... c6 {[%clk 0:02:29.6]} 6. Qc2 {[%clk 0:02:59.4]} 6... g6 {[%clk 0:02:13.7]}
7. Bg5 {[%clk 0:02:58]} 7... Be7 {[%clk 0:01:44.5]} 8. e3 {[%clk 0:02:56]} 8...
Bf5 {[%clk 0:01:41.4]} 9. Bd3 {[%clk 0:02:55.8]} 9... Bxd3 {[%clk 0:01:40.7]}
10. Qxd3 {[%clk 0:02:56.7]} 10... h6 {[%clk 0:01:40.1]} 11. Bf4 {[%clk
0:02:47.7]} 11... Nbd7 {[%clk 0:01:39.4]} 12. h3 {[%clk 0:02:21]} 12... Nb6
{[%clk 0:01:32.3]} 13. O-O {[%clk 0:02:11.1]} 13... O-O {[%clk 0:01:21.4]} 14.
Bxh6 {[%clk 0:02:10.1]} 14... Re8 {[%clk 0:01:20.4]} 15. Bg5 {[%clk 0:02:03.1]}
15... Ne4 {[%clk 0:01:16.2]} 16. Bxe7 {[%clk 0:01:54.7]} 16... Qxe7 {[%clk
0:01:17.1]} 17. Ne5 {[%clk 0:01:49.9]} 17... Nd7 {[%clk 0:01:12.3]} 18. Nxe4
{[%clk 0:01:20.3]} 18... Nxe5 {[%clk 0:01:11.6]} 19. dxe5 {[%clk 0:01:18.7]}
19... dxe4 {[%clk 0:01:11.3]} 20. Qxe4 {[%clk 0:01:18.9]} 20... Qxe5 {[%clk
0:01:11.8]} 21. Qxe5 {[%clk 0:01:14.1]} 21... Rxe5 {[%clk 0:01:12.7]} 22. Rfd1
{[%clk 0:01:13.1]} 22... Rb5 {[%clk 0:01:12.5]} 23. b3 {[%clk 0:01:12.6]} 23...
a5 {[%clk 0:01:12.6]} 24. Rd4 {[%clk 0:00:55.9]} 24... c5 {[%clk 0:00:57.3]} 25.
Rd5 {[%clk 0:00:43.1]} 25... a4 {[%clk 0:00:55.1]} 26. b4 {[%clk 0:00:31.2]}
26... Rxb4 {[%clk 0:00:52.1]} 27. Rxc5 {[%clk 0:00:31.3]} 27... Rd8 {[%clk
0:00:48.2]} 28. Rc2 {[%clk 0:00:29.4]} 28... Rd3 {[%clk 0:00:40.9]} 29. Rac1
{[%clk 0:00:28.5]} 29... Ra3 {[%clk 0:00:38]} 30. Kf1 {[%clk 0:00:27.4]} 30...
b5 {[%clk 0:00:36.3]} 31. Ke2 {[%clk 0:00:24.1]} 31... Kg7 {[%clk 0:00:35.9]}
32. Rd2 {[%clk 0:00:21]} 32... Re4 {[%clk 0:00:28.2]} 33. Rcc2 {[%clk
0:00:16.6]} 33... b4 {[%clk 0:00:27.6]} 34. Rd3 {[%clk 0:00:16.9]} 34... b3
{[%clk 0:00:23]} 35. axb3 {[%clk 0:00:16.2]} 35... axb3 {[%clk 0:00:23.2]} 36.
Rb2 {[%clk 0:00:16.5]} 36... Rb4 {[%clk 0:00:23.3]} 37. Kf3 {[%clk 0:00:13.7]}
37... Rb5 {[%clk 0:00:19.2]} 38. g4 {[%clk 0:00:13.2]} 38... Kh6 {[%clk
0:00:16.2]} 39. Kg3 {[%clk 0:00:13]} 39... f6 {[%clk 0:00:15.3]} 40. h4 {[%clk
0:00:12.4]} 40... f5 {[%clk 0:00:13.9]} 41. f3 {[%clk 0:00:10.4]} 41... fxg4
{[%clk 0:00:13.4]} 42. fxg4 {[%clk 0:00:09.8]} 42... Rb4 {[%clk 0:00:13.4]} 43.
Rd4 {[%clk 0:00:08.9]} 43... Rxd4 {[%clk 0:00:08.8]} 44. exd4 {[%clk 0:00:08.5]}
44... Ra4 {[%clk 0:00:09.4]} 45. Rxb3 {[%clk 0:00:07.7]} 45... Rxd4 {[%clk
0:00:09.4]} 46. Rf3 {[%clk 0:00:08.2]} 46... Kg7 {[%clk 0:00:07.9]} 47. Rc3
{[%clk 0:00:07.5]} 47... Rb4 {[%clk 0:00:07.8]} 48. Rc7+ {[%clk 0:00:07.4]}
48... Kf6 {[%clk 0:00:07.3]} 49. Rc6+ {[%clk 0:00:07.4]} 49... Kf7 {[%clk
0:00:07]} 50. Rc3 {[%clk 0:00:07.9]} 50... Rd4 {[%clk 0:00:06.9]} 51. Rf3+
{[%clk 0:00:08.4]} 51... Kg7 {[%clk 0:00:06.5]} 52. Kh3 {[%clk 0:00:07.3]} 52...
Rb4 {[%clk 0:00:06.9]} 53. Kg3 {[%clk 0:00:07.4]} 53... Ra4 {[%clk 0:00:07.1]}
54. Re3 {[%clk 0:00:07.7]} 54... Rb4 {[%clk 0:00:07.4]} 55. Rd3 {[%clk
0:00:07.6]} 55... Ra4 {[%clk 0:00:07.6]} 56. Rd7+ {[%clk 0:00:07.6]} 56... Kf6
{[%clk 0:00:07.3]} 57. g5+ {[%clk 0:00:07.9]} 57... Ke6 {[%clk 0:00:02.7]} 58.
Rd3 {[%clk 0:00:07.5]} 1-0

[Event "Late-Titled-Tuesday-Blitz-May-07-2024"]
[Site "Chess.com"]
[Date "2024.05.07"]
[Round "5"]
[White "boguszp"]
[Black "IraZyne"]
[Result "1-0"]
[WhiteElo "2039"]
[BlackElo "2298"]
[TimeControl "180+1"]
[EndTime "14:56:42 PDT"]
[Termination "boguszp won by checkmate"]

1. d4 {[%clk 0:03:00.9]} 1... c5 {[%clk 0:02:57.2]} 2. c3 {[%clk 0:02:59.2]}
2... d5 {[%clk 0:02:56.4]} 3. Nf3 {[%clk 0:02:59.1]} 3... Nc6 {[%clk 0:02:56.3]}
4. Bf4 {[%clk 0:02:58.9]} 4... Bg4 {[%clk 0:02:53]} 5. e3 {[%clk 0:02:57.3]}
5... e6 {[%clk 0:02:52.8]} 6. Nbd2 {[%clk 0:02:54.7]} 6... Nf6 {[%clk
0:02:52.7]} 7. Bd3 {[%clk 0:02:55]} 7... Be7 {[%clk 0:02:52.2]} 8. O-O {[%clk
0:02:54.1]} 8... O-O {[%clk 0:02:52.1]} 9. h3 {[%clk 0:02:53.7]} 9... Bh5 {[%clk
0:02:51.1]} 10. Qc2 {[%clk 0:02:48.9]} 10... Bg6 {[%clk 0:02:49.4]} 11. Ne5
{[%clk 0:02:42.2]} 11... Rc8 {[%clk 0:02:48.8]} 12. Nxg6 {[%clk 0:02:33.7]}
12... hxg6 {[%clk 0:02:48]} 13. dxc5 {[%clk 0:02:29.9]} 13... Bxc5 {[%clk
0:02:46.9]} 14. Rad1 {[%clk 0:02:23.9]} 14... Bd6 {[%clk 0:02:46.1]} 15. Bxd6
{[%clk 0:02:19.4]} 15... Qxd6 {[%clk 0:02:45.9]} 16. e4 {[%clk 0:02:20]} 16...
Nb4 {[%clk 0:02:43.2]} 17. Qb1 {[%clk 0:02:08.3]} 17... Nxd3 {[%clk 0:02:42.8]}
18. Qxd3 {[%clk 0:02:07.5]} 18... Qf4 {[%clk 0:02:35]} 19. g3 {[%clk 0:01:57]}
19... dxe4 {[%clk 0:02:26.7]} 20. Qe2 {[%clk 0:01:42.5]} 20... Qf5 {[%clk
0:02:24.1]} 21. Rfe1 {[%clk 0:01:39.2]} 21... Qxh3 {[%clk 0:02:18.4]} 22. Nxe4
{[%clk 0:01:38.3]} 22... Ng4 {[%clk 0:02:11.6]} 23. f3 {[%clk 0:01:35.6]} 23...
Ne5 {[%clk 0:02:08.7]} 24. Qg2 {[%clk 0:01:18.3]} 24... Qxg2+ {[%clk 0:02:04.3]}
25. Kxg2 {[%clk 0:01:18.3]} 25... Nc4 {[%clk 0:01:44.6]} 26. b3 {[%clk
0:01:12.7]} 26... Nb6 {[%clk 0:01:42.8]} 27. c4 {[%clk 0:01:08.7]} 27... Rc7
{[%clk 0:01:30.4]} 28. Rd3 {[%clk 0:01:03.1]} 28... a5 {[%clk 0:01:25.3]} 29.
Red1 {[%clk 0:01:00.4]} 29... a4 {[%clk 0:01:24]} 30. Rd6 {[%clk 0:00:59]} 30...
Nc8 {[%clk 0:01:16.9]} 31. Rd7 {[%clk 0:00:57.6]} 31... Rxd7 {[%clk 0:01:14.4]}
32. Rxd7 {[%clk 0:00:58.2]} 32... axb3 {[%clk 0:01:14.1]} 33. axb3 {[%clk
0:00:57.3]} 33... b6 {[%clk 0:01:14.2]} 34. b4 {[%clk 0:00:46.4]} 34... Re8
{[%clk 0:01:13.7]} 35. Kf2 {[%clk 0:00:41.2]} 35... Kf8 {[%clk 0:01:11.6]} 36.
Ke3 {[%clk 0:00:40.5]} 36... Ne7 {[%clk 0:01:11.5]} 37. g4 {[%clk 0:00:32.6]}
37... Nc6 {[%clk 0:01:03.6]} 38. b5 {[%clk 0:00:28.1]} 38... Ne5 {[%clk
0:01:02.2]} 39. Rc7 {[%clk 0:00:27.1]} 39... Rd8 {[%clk 0:01:01.2]} 40. Nf2
{[%clk 0:00:21.3]} 40... Rd6 {[%clk 0:00:45.3]} 41. f4 {[%clk 0:00:20.7]} 41...
Nd7 {[%clk 0:00:41.4]} 42. Ne4 {[%clk 0:00:20.3]} 42... Rd1 {[%clk 0:00:40.2]}
43. Nc3 {[%clk 0:00:18.4]} 43... Rd6 {[%clk 0:00:37.7]} 44. Ne4 {[%clk 0:00:18]}
44... Rd1 {[%clk 0:00:35]} 45. Nf2 {[%clk 0:00:17.2]} 45... Rd6 {[%clk
0:00:27.9]} 46. Rb7 {[%clk 0:00:16.6]} 46... Nc5 {[%clk 0:00:25.9]} 47. Rb8+
{[%clk 0:00:15.1]} 47... Ke7 {[%clk 0:00:25.7]} 48. Ne4 {[%clk 0:00:14.9]} 48...
Nxe4 {[%clk 0:00:15.7]} 49. Kxe4 {[%clk 0:00:15.4]} 49... f6 {[%clk 0:00:15.4]}
50. Rb7+ {[%clk 0:00:14.7]} 50... Kf8 {[%clk 0:00:14.7]} 51. Rc7 {[%clk
0:00:11]} 51... g5 {[%clk 0:00:11.7]} 52. fxg5 {[%clk 0:00:09.5]} 52... e5
{[%clk 0:00:11.6]} 53. c5 {[%clk 0:00:08]} 53... bxc5 {[%clk 0:00:09.2]} 54.
Rxc5 {[%clk 0:00:06.8]} 54... Rd4+ {[%clk 0:00:08.3]} 55. Kf5 {[%clk 0:00:07.1]}
55... Rf4+ {[%clk 0:00:08.1]} 56. Ke6 {[%clk 0:00:06]} 56... fxg5 {[%clk
0:00:07.7]} 57. Rc8# {[%clk 0:00:05.1]} 1-0

[Event "Late-Titled-Tuesday-Blitz-May-07-2024"]
[Site "Chess.com"]
[Date "2024.05.07"]
[Round "5"]
[White "giomar27"]
[Black "Zq1"]
[Result "1/2-1/2"]
[WhiteElo "2474"]
[BlackElo "2608"]
[TimeControl "180+1"]
[EndTime "14:56:45 PDT"]
[Termination "Game drawn by repetition"]

1. d4 {[%clk 0:03:00.9]} 1... Nf6 {[%clk 0:02:59.1]} 2. Nc3 {[%clk 0:03:01]}
2... d5 {[%clk 0:02:58.3]} 3. Bf4 {[%clk 0:03:01.1]} 3... a6 {[%clk 0:02:57.6]}
4. e3 {[%clk 0:03:01.2]} 4... e6 {[%clk 0:02:57.3]} 5. g4 {[%clk 0:03:01]} 5...
h6 {[%clk 0:02:56.4]} 6. h4 {[%clk 0:02:58.4]} 6... c5 {[%clk 0:02:55.9]} 7. Bh3
{[%clk 0:02:49.6]} 7... cxd4 {[%clk 0:02:54.1]} 8. exd4 {[%clk 0:02:49.5]} 8...
Bb4 {[%clk 0:02:53.9]} 9. Ne2 {[%clk 0:02:48.3]} 9... Nc6 {[%clk 0:02:41.1]} 10.
Qd3 {[%clk 0:02:47.7]} 10... Ne4 {[%clk 0:02:33.8]} 11. g5 {[%clk 0:02:03.1]}
11... hxg5 {[%clk 0:02:27.8]} 12. hxg5 {[%clk 0:02:03.1]} 12... Nxg5 {[%clk
0:02:11.4]} 13. O-O-O {[%clk 0:02:02.7]} 13... Nxh3 {[%clk 0:02:01]} 14. Rxh3
{[%clk 0:02:03.6]} 14... Rxh3 {[%clk 0:01:59.6]} 15. Qxh3 {[%clk 0:02:04.5]}
15... Qe7 {[%clk 0:01:56.2]} 16. Rg1 {[%clk 0:02:00.5]} 16... Bxc3 {[%clk
0:01:42.4]} 17. Nxc3 {[%clk 0:01:54.7]} 17... Nxd4 {[%clk 0:01:35]} 18. Rxg7
{[%clk 0:01:42.5]} 18... Nf5 {[%clk 0:00:53.3]} 19. Rg8+ {[%clk 0:01:42.2]}
19... Kd7 {[%clk 0:00:52.7]} 20. Nxd5 {[%clk 0:01:29.3]} 20... exd5 {[%clk
0:00:43.2]} 21. Qxf5+ {[%clk 0:01:29]} 21... Qe6 {[%clk 0:00:43.5]} 22. Rg5
{[%clk 0:01:01.4]} 22... Qxf5 {[%clk 0:00:37]} 23. Rxf5 {[%clk 0:01:02.3]} 23...
Ke6 {[%clk 0:00:27.8]} 24. Re5+ {[%clk 0:01:02.4]} 24... Kf6 {[%clk 0:00:27.6]}
25. Rxd5 {[%clk 0:01:01.5]} 25... Be6 {[%clk 0:00:27.5]} 26. Rd3 {[%clk
0:00:55.4]} 26... Rc8 {[%clk 0:00:26.3]} 27. b3 {[%clk 0:00:54.7]} 27... b5
{[%clk 0:00:25.1]} 28. Kb2 {[%clk 0:00:53.5]} 28... Kf5 {[%clk 0:00:24.4]} 29.
Be3 {[%clk 0:00:52.1]} 29... Ke4 {[%clk 0:00:21.8]} 30. Rd4+ {[%clk 0:00:51.7]}
30... Kf3 {[%clk 0:00:21.3]} 31. a4 {[%clk 0:00:49]} 31... Ke2 {[%clk
0:00:20.4]} 32. Rd2+ {[%clk 0:00:34.5]} 32... Kf3 {[%clk 0:00:19.9]} 33. a5
{[%clk 0:00:31.8]} 33... b4 {[%clk 0:00:15.2]} 34. Rd4 {[%clk 0:00:28.8]} 34...
Rb8 {[%clk 0:00:11.4]} 35. Rf4+ {[%clk 0:00:25.9]} 35... Ke2 {[%clk 0:00:10.6]}
36. Bb6 {[%clk 0:00:25.4]} 36... Bd5 {[%clk 0:00:07]} 37. Rxb4 {[%clk
0:00:23.3]} 37... f5 {[%clk 0:00:07]} 38. c4 {[%clk 0:00:21.9]} 38... Be4 {[%clk
0:00:06.8]} 39. Kc3 {[%clk 0:00:19.2]} 39... Rh8 {[%clk 0:00:06.3]} 40. Bd4
{[%clk 0:00:18.5]} 40... Rh3+ {[%clk 0:00:06]} 41. Kb2 {[%clk 0:00:18.6]} 41...
Rd3 {[%clk 0:00:05.9]} 42. c5 {[%clk 0:00:16.7]} 42... Bd5 {[%clk 0:00:05.7]}
43. Be3 {[%clk 0:00:09.7]} 43... Rd1 {[%clk 0:00:04.5]} 44. Rd4 {[%clk
0:00:07.2]} 44... Rxd4 {[%clk 0:00:03.9]} 45. Bxd4 {[%clk 0:00:07.8]} 45... Kd3
{[%clk 0:00:04]} 46. Be3 {[%clk 0:00:07.2]} 46... Bc6 {[%clk 0:00:04.2]} 47. Ka3
{[%clk 0:00:07.1]} 47... Bb5 {[%clk 0:00:04.4]} 48. Kb4 {[%clk 0:00:07.4]} 48...
Bc6 {[%clk 0:00:04.7]} 49. Bf4 {[%clk 0:00:07.7]} 49... Bb5 {[%clk 0:00:04.9]}
50. Bg3 {[%clk 0:00:07.9]} 50... Bc6 {[%clk 0:00:05.1]} 51. Bf4 {[%clk
0:00:08.4]} 51... Bb5 {[%clk 0:00:05.4]} 52. c6 {[%clk 0:00:08.5]} 52... Bxc6
{[%clk 0:00:05.5]} 53. Kc5 {[%clk 0:00:09.3]} 53... Bb5 {[%clk 0:00:05.6]} 54.
Kb6 {[%clk 0:00:09.8]} 54... Ke4 {[%clk 0:00:05]} 55. Be3 {[%clk 0:00:08.8]}
55... Kd5 {[%clk 0:00:04.7]} 56. Bc5 {[%clk 0:00:08.9]} 56... Ke6 {[%clk
0:00:04.8]} 57. b4 {[%clk 0:00:09.8]} 57... Kf6 {[%clk 0:00:05]} 58. Kc7 {[%clk
0:00:10.3]} 58... Ke6 {[%clk 0:00:05.3]} 59. Kb6 {[%clk 0:00:10.9]} 59... Bc4
{[%clk 0:00:03.9]} 60. b5 {[%clk 0:00:10]} 60... Bxb5 {[%clk 0:00:03.5]} 61. Bb4
{[%clk 0:00:10.4]} 61... Bc4 {[%clk 0:00:03.5]} 62. Bc5 {[%clk 0:00:11.3]} 62...
Bd3 {[%clk 0:00:03.9]} 63. Ka7 {[%clk 0:00:11.5]} 63... Bb5 {[%clk 0:00:04.5]}
64. Kb6 {[%clk 0:00:11.8]} 64... Bc4 {[%clk 0:00:05.2]} 65. Ka7 {[%clk
0:00:12.3]} 65... Bb5 {[%clk 0:00:05.8]} 66. Kb6 {[%clk 0:00:12.7]} 66... Bc4
{[%clk 0:00:06.2]} 67. Ka7 {[%clk 0:00:13.3]} 67... Bb5 {[%clk 0:00:06.5]}
1/2-1/2

[Event "Late-Titled-Tuesday-Blitz-May-07-2024"]
[Site "Chess.com"]
[Date "2024.05.07"]
[Round "5"]
[White "Meri-Arabidze"]
[Black "ContrVersia"]
[Result "0-1"]
[WhiteElo "2726"]
[BlackElo "2894"]
[TimeControl "180+1"]
[EndTime "14:56:56 PDT"]
[Termination "ContrVersia won by checkmate"]

1. Nf3 {[%clk 0:03:00.9]} 1... d5 {[%clk 0:02:59.6]} 2. c4 {[%clk 0:03:01.4]}
2... d4 {[%clk 0:02:59.4]} 3. b4 {[%clk 0:03:01.6]} 3... c5 {[%clk 0:02:56.7]}
4. b5 {[%clk 0:03:01.8]} 4... f6 {[%clk 0:02:55.6]} 5. g3 {[%clk 0:03:01.3]}
5... b6 {[%clk 0:02:54.5]} 6. Bg2 {[%clk 0:03:01.1]} 6... Bb7 {[%clk 0:02:54.7]}
7. O-O {[%clk 0:02:58.3]} 7... e5 {[%clk 0:02:54.1]} 8. d3 {[%clk 0:02:58.5]}
8... Bd6 {[%clk 0:02:51.1]} 9. a4 {[%clk 0:02:58.5]} 9... a5 {[%clk 0:02:46]}
10. Ra2 {[%clk 0:02:57.9]} 10... Ne7 {[%clk 0:02:43.1]} 11. Nh4 {[%clk 0:02:33]}
11... Bxg2 {[%clk 0:02:37.6]} 12. Kxg2 {[%clk 0:02:33.9]} 12... g5 {[%clk
0:02:35.4]} 13. Nf3 {[%clk 0:02:32.6]} 13... Nd7 {[%clk 0:02:35.8]} 14. e4
{[%clk 0:02:31.9]} 14... Ng6 {[%clk 0:02:27.4]} 15. Rh1 {[%clk 0:02:26.6]} 15...
Qe7 {[%clk 0:01:54.1]} 16. h4 {[%clk 0:02:26]} 16... g4 {[%clk 0:01:44]} 17. Nh2
{[%clk 0:02:26]} 17... h5 {[%clk 0:01:44]} 18. f3 {[%clk 0:02:22.3]} 18... gxf3+
{[%clk 0:01:43.4]} 19. Qxf3 {[%clk 0:02:22.9]} 19... Qg7 {[%clk 0:01:43.3]} 20.
Kf1 {[%clk 0:02:05.7]} 20... O-O-O {[%clk 0:01:43.1]} 21. Rf2 {[%clk 0:02:05.3]}
21... Rdg8 {[%clk 0:01:42.3]} 22. Ke2 {[%clk 0:02:02.9]} 22... Kc7 {[%clk
0:01:40.1]} 23. Nd2 {[%clk 0:01:54.2]} 23... Bf8 {[%clk 0:01:31.3]} 24. Kd1
{[%clk 0:01:53.9]} 24... Qe7 {[%clk 0:01:26.2]} 25. Kc2 {[%clk 0:01:53.4]} 25...
Bh6 {[%clk 0:01:26.3]} 26. Rhf1 {[%clk 0:01:47.5]} 26... Be3 {[%clk 0:01:24.5]}
27. Re2 {[%clk 0:01:43.1]} 27... Qe6 {[%clk 0:01:24.1]} 28. Nb3 {[%clk
0:01:41.3]} 28... Bxc1 {[%clk 0:01:22.1]} 29. Nxc1 {[%clk 0:01:42.2]} 29... Ne7
{[%clk 0:01:15.7]} 30. Ref2 {[%clk 0:01:33.1]} 30... Rg6 {[%clk 0:01:15]} 31.
Ne2 {[%clk 0:01:32.1]} 31... Rgh6 {[%clk 0:01:01]} 32. Qh1 {[%clk 0:01:30.9]}
32... Rf8 {[%clk 0:00:59.6]} 33. Qg2 {[%clk 0:01:27.8]} 33... Rh7 {[%clk
0:00:58.3]} 34. g4 {[%clk 0:01:09.2]} 34... hxg4 {[%clk 0:00:54.6]} 35. Qxg4
{[%clk 0:01:08.9]} 35... Kd6 {[%clk 0:00:32.2]} 36. h5 {[%clk 0:00:46.1]} 36...
Rg8 {[%clk 0:00:29.8]} 37. Qh4 {[%clk 0:00:38.6]} 37... Rg5 {[%clk 0:00:25.3]}
38. Rxf6 {[%clk 0:00:31.4]} 38... Nxf6 {[%clk 0:00:26.2]} 39. Qxg5 {[%clk
0:00:31.6]} 39... Nxh5 {[%clk 0:00:25]} 40. Ng4 {[%clk 0:00:22.9]} 40... Rg7
{[%clk 0:00:14]} 41. Qxh5 {[%clk 0:00:22.1]} 41... Rxg4 {[%clk 0:00:12]} 42. Qh8
{[%clk 0:00:19.5]} 42... Rg8 {[%clk 0:00:11.3]} 43. Qh4 {[%clk 0:00:17.6]} 43...
Rg2 {[%clk 0:00:10.5]} 44. Rf6 {[%clk 0:00:16.1]} 44... Rxe2+ {[%clk 0:00:08.8]}
45. Kd1 {[%clk 0:00:16.5]} 45... Re3 {[%clk 0:00:05.8]} 46. Rxe6+ {[%clk
0:00:16.3]} 46... Kxe6 {[%clk 0:00:06.7]} 47. Qh6+ {[%clk 0:00:16.4]} 47... Kf7
{[%clk 0:00:07]} 48. Kd2 {[%clk 0:00:16.4]} 48... Ng6 {[%clk 0:00:05.9]} 49.
Qh7+ {[%clk 0:00:16.7]} 49... Kf6 {[%clk 0:00:06.7]} 50. Qb7 {[%clk 0:00:16.3]}
50... Nf4 {[%clk 0:00:07.6]} 51. Qxb6+ {[%clk 0:00:16.5]} 51... Kg5 {[%clk
0:00:08.5]} 52. Qd8+ {[%clk 0:00:15.6]} 52... Kg4 {[%clk 0:00:09.1]} 53. Qxa5
{[%clk 0:00:15.5]} 53... Rxd3+ {[%clk 0:00:09.4]} 54. Kc2 {[%clk 0:00:15.7]}
54... Re3 {[%clk 0:00:09.2]} 55. Qd8 {[%clk 0:00:12.6]} 55... d3+ {[%clk
0:00:08.5]} 56. Kc3 {[%clk 0:00:12.1]} 56... Kf3 {[%clk 0:00:04.8]} 57. b6
{[%clk 0:00:11.3]} 57... Ke2 {[%clk 0:00:04.7]} 58. b7 {[%clk 0:00:10.9]} 58...
d2+ {[%clk 0:00:05.1]} 59. Kc2 {[%clk 0:00:10.8]} 59... Rd3 {[%clk 0:00:05.1]}
60. Qxd3+ {[%clk 0:00:01.6]} 60... Nxd3 {[%clk 0:00:06]} 61. b8=Q {[%clk
0:00:01.4]} 61... d1=Q+ {[%clk 0:00:06.7]} 62. Kc3 {[%clk 0:00:01.7]} 62... Qc1+
{[%clk 0:00:07]} 63. Kb3 {[%clk 0:00:01.2]} 63... Qb2# {[%clk 0:00:07.4]} 0-1